lending/lending_fUSD_20260211
["ID","MTS","AMOUNT","RATE_DAILY","PERIOD"]
[405095496,1770796238472,-919.38,0.000167,2]
[405095497,1770796238519,-280.241952,0.000167,2]
[405095512,1770796240346,-301.912,0.000167,2]
[405095513,1770796240630,-70355.38876215,0.000167,2]
[405095514,1770796240682,-588249.30675568,0.000167,2]
[405095533,1770796556186,157.52,9.824e-05,2]
[405095534,1770796556384,157.52,0.00010169,2]
[405095535,1770796556593,157.52,0.00010514,2]
[405095536,1770796556782,157.52,0.00010858,2]
[405095537,1770796556979,157.52,0.00011203,2]
[405095538,1770796557214,157.52,0.00011548,2]
[405095539,1770796557413,157.52,0.00011893,2]
[405095541,1770796931600,5530.0,0.000116,5]
[405095544,1770797054507,5530.0,0.000113,5]
[405095545,1770797085894,3471.0,0.000113,5]
[405095556,1770797281003,-200.0,0.0001402,7]
[405095557,1770797282881,-9.493016,0.0001402,7]
[405095591,1770797363135,200.0,0.000107,5]
[405095607,1770797431407,-157.52,0.00012237,2]
[405095608,1770797431417,-157.52,0.00012582,2]
[405095609,1770797431427,-250.0,0.00012683,2]
[405095610,1770797431437,-157.52,0.00012927,2]
[405095611,1770797431446,-157.52,0.00013271,2]
[405095612,1770797431458,-250.0,0.00013461,2]
[405095613,1770797431468,-157.52,0.00013616,2]
[405095614,1770797431477,-157.52,0.00013961,2]
[405095615,1770797431487,-500.0,0.00014277,3]
[405095616,1770797431498,-157.52,0.00014306,2]
[405095617,1770797431507,-180.91,0.00014312,2]
[405095618,1770797431517,-1223.25,0.00014584,2]
[405095619,1770797431527,-500.0,0.0001463,2]
[405095620,1770797431537,-157.52,0.0001465,2]
[405095621,1770797431547,-500.0,0.00014658,2]
[405095622,1770797431556,-1852.42,0.00014737,2]
[405095623,1770797431567,-166.66,0.00014751,2]
[405095624,1770797431577,-500.0,0.00014758,2]
[405095625,1770797431587,-300.0,0.00014765,2]
[405095626,1770797431597,-1200.0,0.00014765,2]
[405095627,1770797431607,-1605.41236818,0.00014766,2]
[405095628,1770797431639,-1634.58763182,0.00014766,2]
[405095629,1770797431649,-240.02,0.00014853,2]
[405095631,1770797431659,-238.74,0.00014868,2]
[405095633,1770797431669,-157.52,0.00014995,2]
[405095635,1770797431680,-166.66,0.00015062,2]
[405095637,1770797431690,-180.91,0.00015107,2]
[405095638,1770797431701,-500.0,0.00015178,2]
[405095639,1770797431715,-300.0,0.00015309,2]
[405095640,1770797431725,-3368.93125543,0.0001531,2]
[405095641,1770797431737,-756.18617286,0.0001531,2]
[405095642,1770797431757,-280.86257171,0.0001531,2]
[405095643,1770797431767,-5347.89,0.0001531,2]
[405095644,1770797431776,-150.99,0.0001531,2]
[405095645,1770797431786,-9999.99,0.0001531,2]
[405095646,1770797431795,-157.52,0.0001534,2]
[405095647,1770797431805,-2561.19,0.00015349,2]
[405095648,1770797431814,-166.66,0.00015372,2]
[405095649,1770797431824,-500.0,0.00015479,2]
[405095650,1770797431833,-200.0,0.00015606,2]
[405095651,1770797431843,-3016.09,0.00015613,2]
[405095652,1770797431853,-166.66,0.00015683,2]
[405095653,1770797431862,-157.52,0.00015684,2]
[405095654,1770797431871,-180.91,0.00015902,2]
[405095655,1770797431881,-166.66,0.00015993,2]
[405095656,1770797431891,-21643.0,0.00016,2]
[405095657,1770797431900,-257.447609,0.00016,2]
[405095658,1770797431909,-157.52,0.00016029,2]
[405095659,1770797431919,-500.0,0.00016137,2]
[405095660,1770797431928,-420.0,0.00016164,2]
[405095661,1770797431938,-169.08628631,0.00016204,2]
[405095662,1770797431948,-1151.0,0.00016242,2]
[405095663,1770797431960,-166.66,0.00016304,2]
[405095664,1770797431969,-157.52,0.00016374,2]
[405095665,1770797431979,-183.0,0.00016427,2]
[405095666,1770797431988,-1275.39079215,0.00016489,5]
[405095667,1770797431998,-42939.34774597,0.00016489,2]
[405095668,1770797432007,-500.0,0.00016489,2]
[405095669,1770797432016,-578.39927052,0.00016489,2]
[405095670,1770797432026,-169.08628631,0.00016543,2]
[405095671,1770797432036,-1000.0,0.000166,2]
[405095672,1770797432047,-150.60409536,0.000166,2]
[405095673,1770797432056,-180.91,0.00016698,2]
[405095674,1770797432066,-1201.85190849,0.00016699,2]
[405095675,1770797432076,-153.4566854,0.000167,2]
[405095676,1770797432086,-1605.3759,0.00016714,2]
[405095677,1770797432096,-174.03,0.0001672,2]
[405095678,1770797432105,-1580.23,0.00016745,2]
[405095679,1770797432114,-1000.0,0.00016757,2]
[405095680,1770797432124,-620.41674486,0.000168,2]
[405095681,1770797432134,-158.56688422,0.000168,2]
[405095682,1770797432144,-8327.70950339,0.000168,2]
[405095683,1770797432154,-151.0,0.00016864,2]
[405095684,1770797432163,-72403.8968,0.00016867,2]
[405095685,1770797432173,-169.08628631,0.00016882,2]
[405095686,1770797432183,-10159.1076,0.000169,2]
[405095687,1770797432193,-487.0,0.000169,2]
[405095688,1770797432202,-487.0,0.000169,2]
[405095689,1770797432215,-487.0,0.000169,2]
[405095690,1770797432226,-487.0,0.000169,2]
[405095691,1770797432236,-487.0,0.000169,2]
[405095692,1770797432246,-487.0,0.000169,2]
[405095693,1770797432256,-487.0,0.000169,2]
[405095694,1770797432266,-487.0,0.000169,2]
[405095695,1770797432275,-487.0,0.000169,2]
[405095696,1770797432286,-487.0,0.000169,2]
[405095697,1770797432297,-487.0,0.000169,2]
[405095698,1770797432313,-487.0,0.000169,2]
[405095699,1770797432323,-487.0,0.000169,2]
[405095700,1770797432333,-487.0,0.000169,2]
[405095701,1770797432343,-487.0,0.000169,2]
[405095702,1770797432354,-487.0,0.000169,2]
[405095703,1770797432364,-640.86,0.000169,2]
[405095704,1770797432375,-8327.70950339,0.00016922,2]
[405095705,1770797432385,-150.0,0.00016931,2]
[405095706,1770797432395,-206.85979037,0.00016931,2]
[405095707,1770797432405,-33323.5159,0.00016965,2]
[405095708,1770797432416,-8327.70950339,0.00017044,2]
[405095709,1770797432426,-38158.6833528,0.00017065,2]
[405095710,1770797432436,-69607.1674706,0.00017065,2]
[405095711,1770797432446,-4434.6168394,0.00017065,2]
[405095712,1770797432455,-286.0,0.0001708,2]
[405095713,1770797432466,-277.35679052,0.00017099,2]
[405095714,1770797432476,-350.0,0.00017166,2]
[405095715,1770797432487,-8327.70950339,0.00017167,2]
[405095716,1770797432497,-169.08628631,0.00017222,2]
[405095717,1770797432506,-278.0,0.00017223,2]
[405095718,1770797432516,-8327.70950339,0.00017289,2]
[405095719,1770797432526,-350.0,0.00017355,2]
[405095720,1770797432537,-278.45524246,0.00017369,2]
[405095721,1770797432546,-171.0,0.00017382,2]
[405095722,1770797432555,-500.0,0.00017397,2]
[405095723,1770797432565,-8327.70950339,0.00017411,2]
[405095724,1770797432575,-180.91,0.00017493,2]
[405095725,1770797432584,-576.97542512,0.000175,2]
[405095726,1770797432594,-8327.70950339,0.00017533,2]
[405095727,1770797432604,-169.08628631,0.00017561,2]
[405095728,1770797432615,-1580.23,0.00017582,2]
[405095729,1770797432625,-500.0,0.00017588,2]
[405095730,1770797432634,-500.0,0.00017588,2]
[405095731,1770797432644,-500.0,0.00017588,2]
[405095732,1770797432654,-500.0,0.00017588,2]
[405095733,1770797432663,-150.0,0.00017639,2]
[405095734,1770797432673,-2445.9531312,0.0001764,2]
[405095735,1770797432682,-360.73581248,0.00017647,2]
[405095736,1770797432692,-8327.70950339,0.00017656,2]
[405095737,1770797432702,-350.0,0.00017684,2]
[405095738,1770797432713,-354.0,0.00017694,2]
[405095739,1770797432723,-2012.0,0.000177,2]
[405095740,1770797432733,-168.0,0.00017736,2]
[405095741,1770797432742,-350.0,0.00017774,2]
[405095742,1770797432752,-8327.70950339,0.00017778,2]
[405095743,1770797432762,-595.062,0.00017788,2]
[405095744,1770797432771,-10000.0,0.00017808,2]
[405095745,1770797432781,-200.0,0.00017851,2]
[405095746,1770797432791,-500.0,0.00017855,2]
[405095747,1770797432801,-500.0,0.00017856,2]
[405095748,1770797432811,-200.0,0.00017856,2]
[405095749,1770797432821,-500.0,0.00017873,2]
[405095750,1770797432831,-500.0,0.00017873,2]
[405095751,1770797432840,-6645.3555,0.000179,2]
[405095752,1770797432850,-8327.70950339,0.000179,2]
[405095753,1770797432860,-169.08628631,0.000179,2]
[405095754,1770797432871,-158.46736826,0.000179,2]
[405095755,1770797432881,-50.03614591,0.000179,2]
[405095756,1770797432897,-111.98043145,0.000179,2]
[405095757,1770797432907,-1075.85725622,0.000179,2]
[405095758,1770797432916,-163.30823672,0.000179,2]
[405095759,1770797432928,-1232.22848825,0.000179,2]
[405095760,1770797432937,-51.51756218,0.000179,2]
[405095762,1770797437565,-448.48243782,0.000179,2]
[405095763,1770797437576,-91.52976264,0.000179,2]
[405095764,1770797437615,-408.47023736,0.000179,2]
[405095765,1770797437625,-500.0,0.000179,2]
[405095766,1770797437634,-500.0,0.000179,2]
[405095767,1770797437644,-500.0,0.000179,2]
[405095768,1770797437654,-500.0,0.000179,2]
[405095769,1770797437664,-500.0,0.000179,2]
[405095770,1770797437674,-500.0,0.000179,2]
[405095771,1770797437683,-500.0,0.000179,2]
[405095772,1770797437693,-500.0,0.000179,2]
[405095773,1770797437702,-10969.94429914,0.000179,2]
[405095786,1770797439632,-3118.05570086,0.000179,2]
[405095787,1770797439642,-150.0,0.0001797,2]
[405095788,1770797439652,-119.44429914,0.0001797,2]
[405095789,1770797439833,-30.76370086,0.0001797,2]
[405095790,1770797439844,-170.794,0.0001797,2]
[405095791,1770797439854,-150.0,0.0001797,2]
[405095792,1770797439864,-150.0,0.0001797,2]
[405095793,1770797439874,-150.183,0.0001797,2]
[405095794,1770797439885,-150.0,0.0001797,2]
[405095795,1770797439894,-1337.0,0.0001797,2]
[405095796,1770797439904,-3495.133,0.0001797,2]
[405095797,1770797439913,-1288.0,0.0001797,2]
[405095798,1770797439923,-1285.954,0.0001797,2]
[405095799,1770797439932,-923.406,0.0001797,2]
[405095800,1770797439942,-1217.499,0.0001797,2]
[405095801,1770797439952,-5966.0,0.0001797,2]
[405095802,1770797439962,-2449.0,0.0001797,2]
[405095803,1770797439973,-6590.0,0.0001797,2]
[405095804,1770797439983,-270.80046435,0.00017973,2]
[405095805,1770797439993,-500.0,0.00017973,2]
[405095806,1770797440003,-500.0,0.00017973,2]
[405095807,1770797440012,-500.0,0.00017973,2]
[405095808,1770797440022,-500.0,0.00017973,2]
[405095809,1770797440031,-500.0,0.00017973,2]
[405095810,1770797440041,-502.33406416,0.00017973,2]
[405095811,1770797440051,-500.0,0.00017973,2]
[405095812,1770797440061,-500.0,0.00017973,2]
[405095813,1770797440071,-285.00906658,0.00017973,2]
[405095815,1770797440082,-151.0,0.00017996,2]
[405095816,1770797440091,-500.0,0.00017997,2]
[405095817,1770797440101,-500.0,0.00017997,2]
[405095818,1770797440111,-151.0,0.00017997,2]
[405095819,1770797440120,-500.0,0.00017997,2]
[405095820,1770797440130,-3312.3378819,0.00017998,2]
[405095821,1770797440139,-309.71991093,0.00017999,2]
[405095822,1770797440149,-176.91539642,0.00017999,2]
[405095823,1770797440159,-191.55531114,0.00017999,2]
[405095824,1770797440169,-195.981,0.00017999,2]
[405095825,1770797440178,-500.0,0.00017999,2]
[405095826,1770797440188,-500.0,0.00017999,2]
[405095827,1770797440198,-500.0,0.00017999,2]
[405095828,1770797440208,-172.65144793,0.00017999,2]
[405095829,1770797440219,-500.0,0.00017999,2]
[405095830,1770797440228,-500.0,0.00017999,2]
[405095831,1770797440237,-500.0,0.00017999,2]
[405095833,1770797440247,-500.0,0.00017999,2]
[405095834,1770797440256,-521.59178718,0.00017999,2]
[405095835,1770797440265,-316.70211469,0.00017999,2]
[405095836,1770797440275,-47357.1345473,0.00018,2]
[405095837,1770797440294,-1465.29058904,0.00018,2]
[405095838,1770797440412,-363932.35802121,0.00018,2]
[405095839,1770797440422,-150.0,0.00018,2]
[405095840,1770797440432,-4685.51599946,0.00018,2]
[405095841,1770797440441,-150.0,0.00018,2]
[405095842,1770797440450,-11392.07976116,0.00018,2]
[405095843,1770797440460,-3455.79897219,0.00018,2]
[405095844,1770797440469,-150.0,0.00018,2]
[405095845,1770797440479,-204333.55400166,0.00018,2]
[405095857,1770797445055,-624.68867735,0.00018,2]
[405095858,1770797445121,-377.35148596,0.00018,2]
[405095859,1770797445453,-1141.6,0.00018,2]
[405095860,1770797445465,-2292.05696263,0.00018,2]
[405095861,1770797445477,-362.84828034,0.00018,2]
[405095862,1770797445518,-677.23932276,0.00018,2]
[405095863,1770797445679,-726.47279613,0.00018,2]
[405095864,1770797445691,-14914.06547665,0.00018,2]
[405095865,1770797445747,-741.84818273,0.00018,2]
[405095935,1770798113710,-5267.92977897,0.000226,120]
[405095936,1770798113784,-174.03,0.00025081,120]
[405095937,1770798113853,-500.0,0.00026693,120]
[405095938,1770798113927,-500.0,0.00028848,120]
[405095939,1770798114002,-621.88466,0.00031004,120]
[405095940,1770798114071,-178.32982609,0.00031263,120]
[405095941,1770798114137,-1224.0,0.00032,120]
[405096396,1770798198998,500.0,0.00028693,120]
[405096401,1770798333337,6298.84835584,8.36e-06,2]
[405096402,1770798350183,-1000.0,0.00044377,30]
[405096403,1770798350274,-244.0,0.00044377,30]
[405096404,1770798350360,-218.49,0.00044377,120]
[405096405,1770798350442,-1367.40069732,0.00044377,60]
[405096406,1770798350525,-218.48,0.00044377,120]
[405096407,1770798350607,-800.0,0.00044377,31]
[405096408,1770798350684,-800.0,0.00044377,31]
[405096409,1770798350762,-800.0,0.00044377,31]
[405096410,1770798350837,-800.0,0.00044377,31]
[405096411,1770798350913,-800.0,0.00044377,31]
[405096412,1770798350990,-800.0,0.00044377,31]
[405096413,1770798351070,-800.0,0.00044377,31]
[405096414,1770798351147,-800.0,0.00044377,31]
[405096415,1770798351227,-800.0,0.00044377,31]
[405096416,1770798351312,-800.0,0.00044377,31]
[405096417,1770798351392,-800.0,0.00044377,31]
[405096418,1770798351472,-800.0,0.00044377,31]
[405096419,1770798351551,-1107.65254625,0.00044377,90]
[405096420,1770798351642,-399.561897,0.00044377,30]
[405096421,1770798351724,-999.999997,0.00044377,120]
[405096422,1770798351806,-340.58601888,0.00044377,91]
[405096423,1770798351885,-720.42391661,0.00044377,120]
[405096424,1770798351964,-480.21548403,0.00044377,60]
[405096425,1770798352048,-318.50412606,0.00044377,120]
[405096426,1770798352131,-511.73185578,0.00044377,120]
[405096427,1770798352214,-1040.31305312,0.00044377,120]
[405096428,1770798352295,-558.74170313,0.00044377,30]
[405096429,1770798352376,-437.911948,0.00044377,30]
[405096430,1770798352459,-1594.51196511,0.00044377,30]
[405096431,1770798352540,-242.82404457,0.00044377,120]
[405096432,1770798352626,-222.29191814,0.00044377,120]
[405096433,1770798352710,-196.12447744,0.00044377,60]
[405096434,1770798352789,-181.49897155,0.00044377,30]
[405096435,1770798352873,-333.82103321,0.00044377,90]
[405096436,1770798352959,-414.12305845,0.00044377,120]
[405096437,1770798353044,-173.74328383,0.00044377,30]
[405096438,1770798353129,-762.27850204,0.00044377,120]
[405096439,1770798353218,-478.15253235,0.00044377,120]
[405096440,1770798353303,-694.3752292,0.00044377,30]
[405096441,1770798353385,-170.15126625,0.00044377,30]
[405096442,1770798353461,-178.2456803,0.00044377,120]
[405096443,1770798353544,-441.78685478,0.00044377,120]
[405096444,1770798353622,-287.2177142,0.00044377,120]
[405096445,1770798353706,-494.98816928,0.00044377,120]
[405096446,1770798353785,-800.0,0.00044377,31]
[405096447,1770798353866,-800.0,0.00044377,31]
[405096448,1770798353953,-800.0,0.00044377,31]
[405096449,1770798354043,-800.0,0.00044377,31]
[405096450,1770798354143,-800.0,0.00044377,31]
[405096451,1770798354230,-800.0,0.00044377,31]
[405096452,1770798354320,-800.0,0.00044377,31]
[405096453,1770798354406,-800.0,0.00044377,31]
[405096454,1770798354485,-823.87696848,0.00044377,31]
[405096455,1770798354561,-444.77630263,0.00044377,120]
[405096456,1770798354640,-256.60129452,0.00044377,120]
[405096457,1770798354717,-329.70324405,0.00044377,30]
[405096458,1770798354793,-257.94354859,0.00044377,120]
[405096459,1770798354868,-600.20027653,0.00044377,120]
[405096460,1770798354957,-268.63811235,0.00044377,120]
[405096461,1770798355051,-268.77299799,0.00044377,120]
[405096462,1770798355136,-2132.65355404,0.00044377,30]
[405096463,1770798355224,-531.12635021,0.00044377,120]
[405096464,1770798355311,-1988.30072956,0.00044377,120]
[405096465,1770798355397,-200.69556154,0.00044377,30]
[405096466,1770798355475,-265.17778538,0.00044377,120]
[405096467,1770798355557,-196.21695346,0.00044377,120]
[405096468,1770798355643,-2980.79076854,0.00044377,30]
[405096469,1770798355728,-252.24796073,0.00044377,120]
[405096470,1770798355805,-2240.44947715,0.00044377,120]
[405096471,1770798355883,-2389.18744656,0.00044377,30]
[405096472,1770798355968,-1043.22818128,0.00044377,120]
[405096473,1770798356048,-446.31638161,0.00044377,30]
[405096474,1770798356126,-389.69310909,0.00044377,120]
[405096475,1770798356209,-183.38607778,0.00044377,120]
[405096476,1770798356293,-185.73063266,0.00044377,120]
[405096477,1770798356373,-196.37048902,0.00044377,120]
[405096478,1770798356448,-612.12623803,0.00044377,120]
[405096479,1770798356526,-219.21387902,0.00044377,120]
[405096480,1770798356605,-155.15782085,0.00044377,30]
[405096481,1770798356683,-1495.87470494,0.00044377,30]
[405096482,1770798356958,-257.29205018,0.00044377,30]
[405096483,1770798357035,-541.79580608,0.00044377,30]
[405096484,1770798357116,-708.8683516,0.00044377,120]
[405096485,1770798357194,-317.4251555,0.00044377,120]
[405096486,1770798357268,-2045.22521493,0.00044377,30]
[405096487,1770798357349,-601.55751075,0.00044377,37]
[405096488,1770798357429,-612.72193552,0.00044377,30]
[405096489,1770798357508,-398.97183538,0.00044377,30]
[405096490,1770798357589,-270.70297009,0.00044377,30]
[405096491,1770798357668,-730.63754295,0.00044377,30]
[405096492,1770798357747,-1099.15729733,0.00044377,120]
[405096493,1770798357825,-855.0,0.00044377,30]
[405096494,1770798357910,-475.26533,0.00044377,60]
[405096495,1770798357994,-475.26533,0.00044377,60]
[405096496,1770798358079,-475.26533,0.00044377,60]
[405096497,1770798358166,-475.26533,0.00044377,60]
[405096498,1770798358251,-475.26533,0.00044377,60]
[405096499,1770798358332,-263.85927179,0.00044377,120]
[405096500,1770798358404,-3190.0,0.00044377,120]
[405096501,1770798358475,-168.01007029,0.00044377,30]
[405096502,1770798358547,-26313.68269193,0.00044377,36]
[405096503,1770798358618,-2000.0,0.00044377,120]
[405096504,1770798358692,-857.0,0.00044377,120]
[405096505,1770798358762,-1253.6,0.00044377,120]
[405096506,1770798358833,-167.60354197,0.00044377,72]
[405096507,1770798358906,-31625.41939213,0.00044377,30]
[405096508,1770798358982,-400.0,0.00044377,30]
[405096509,1770798359058,-400.0,0.00044377,30]
[405096510,1770798359139,-400.0,0.00044377,30]
[405096511,1770798359219,-400.0,0.00044377,30]
[405096512,1770798359307,-400.0,0.00044377,30]
[405096513,1770798359388,-400.0,0.00044377,30]
[405096514,1770798359467,-400.0,0.00044377,30]
[405096515,1770798359547,-400.0,0.00044377,30]
[405096516,1770798359632,-400.0,0.00044377,30]
[405096517,1770798359713,-400.0,0.00044377,30]
[405096518,1770798359788,-400.0,0.00044377,30]
[405096519,1770798359870,-400.0,0.00044377,30]
[405096520,1770798359955,-400.0,0.00044377,30]
[405096521,1770798360040,-400.0,0.00044377,30]
[405096522,1770798360133,-400.0,0.00044377,30]
[405096523,1770798360231,-400.0,0.00044377,30]
[405096524,1770798360342,-441.76449992,0.00044377,30]
[405096525,1770798360442,-500.0,0.00044377,30]
[405096526,1770798360539,-1029.65740452,0.00044377,120]
[405096527,1770798360637,-1314.95,0.00044377,120]
[405096528,1770798360727,-6227.59542977,0.00044377,120]
[405096529,1770798360811,-3218.0,0.00044377,120]
[405096530,1770798360904,-50000.0,0.00044377,59]
[405096531,1770798360994,-570.28099757,0.00044377,30]
[405096532,1770798361079,-500.0,0.00044377,30]
[405096533,1770798361156,-500.0,0.00044377,30]
[405096534,1770798361235,-500.0,0.00044377,30]
[405096535,1770798361325,-500.0,0.00044377,30]
[405096536,1770798361407,-500.0,0.00044377,120]
[405096537,1770798361484,-500.0,0.00044377,30]
[405096538,1770798361567,-500.0,0.00044377,30]
[405096539,1770798361648,-500.0,0.00044377,30]
[405096540,1770798361726,-500.0,0.00044377,30]
[405096541,1770798361806,-1530.3999018,0.00044377,120]
[405096542,1770798361889,-60036.14773491,0.00044377,60]
[405096543,1770798361974,-19073.26407962,0.00044377,30]
[405096544,1770798362068,-50000.0,0.00044377,60]
[405096545,1770798362169,-1544.84293739,0.00044377,120]
[405096546,1770798362268,-3740.0,0.00044377,31]
[405096547,1770798362367,-31191.32825996,0.00044377,30]
[405096548,1770798362473,-2000.0,0.00044377,30]
[405096549,1770798362574,-1008.0,0.00044377,30]
[405096550,1770798362677,-581707.30319998,0.00044377,120]
[405096551,1770798362778,-9406.1158681,0.00044377,60]
[405096552,1770798362884,-50000.0,0.00044377,60]
[405096553,1770798362988,-50000.0,0.00044377,61]
[405096554,1770798363094,-386.47,0.00044377,120]
[405096555,1770798363197,-228.82809475,0.00044377,30]
[405096556,1770798363305,-30840.51822314,0.00044377,120]
[405096557,1770798363408,-458.56301171,0.00044377,30]
[405096558,1770798363505,-234.0,0.00044377,30]
[405096559,1770798363603,-2018.9891364,0.00044377,120]
[405096560,1770798363698,-640.655571,0.00044377,120]
[405096561,1770798363786,-624.92187728,0.00044377,120]
[405096562,1770798363866,-244.75749873,0.00044377,60]
[405096563,1770798363953,-276.88501119,0.00044377,120]
[405096564,1770798364041,-178.3753,0.00044377,60]
[405096565,1770798364129,-842.72408188,0.00044377,30]
[405096566,1770798364216,-345.0,0.00044377,120]
[405096567,1770798364307,-453.93,0.00044377,120]
[405096568,1770798364391,-14763.0,0.00044377,30]
[405096569,1770798364702,-266.0,0.00044377,30]
[405096570,1770798364786,-156.67063515,0.00044377,60]
[405096571,1770798364870,-177.28426241,0.00044377,120]
[405096572,1770798364965,-159.15139755,0.00044377,120]
[405096573,1770798365056,-163.48829114,0.00044377,30]
[405096574,1770798365144,-160.74943425,0.00044377,30]
[405096575,1770798365240,-5309.47752037,0.00044377,30]
[405096578,1770798365332,-195.32465796,0.00044377,30]
[405096579,1770798365424,-557.89139815,0.00044377,30]
[405096580,1770798365516,-158.22880875,0.00044377,120]
[405096581,1770798365606,-5301.0,0.00044377,120]
[405096582,1770798365686,-8080.64960445,0.00044377,120]
[405096583,1770798365767,-1149.46614348,0.00044377,120]
[405096584,1770798365842,-225.71834559,0.00044377,120]
[405096585,1770798365922,-269.9435593,0.00044377,120]
[405096586,1770798366003,-582.22801745,0.00044377,120]
[405096587,1770798366087,-1295.40719777,0.00044377,120]
[405096588,1770798366172,-714.2,0.00044377,120]
[405096589,1770798366282,-178.0,0.00044377,120]
[405096590,1770798366375,-229.0,0.00044377,120]
[405096591,1770798366456,-21258.49218,0.00044377,120]
[405096592,1770798366541,-1250.52910093,0.00044377,120]
[405096593,1770798366631,-317.04017547,0.00044377,120]
[405096594,1770798366715,-258.8,0.00044377,30]
[405096595,1770798366794,-190.02,0.00044377,120]
[405096596,1770798366874,-186.275498,0.00044377,90]
[405096597,1770798366957,-233.14481306,0.00044377,120]
[405096598,1770798367040,-43833.64,0.00044377,120]
[405096599,1770798367123,-2691.76501138,0.00044377,120]
[405096600,1770798367206,-228.69657264,0.00044377,120]
[405096601,1770798367289,-228.69657264,0.00044377,120]
[405096602,1770798367379,-228.69657264,0.00044377,120]
[405096603,1770798367468,-1147.82937307,0.00044377,30]
[405096604,1770798367554,-378.40806557,0.00044377,120]
[405096605,1770798367649,-1556.72,0.00044377,30]
[405096606,1770798367738,-8713.34180154,0.00044377,120]
[405096607,1770798367826,-583.65,0.00044377,120]
[405096608,1770798367923,-706.18274694,0.00044377,120]
[405096609,1770798368026,-20000.0,0.00044377,30]
[405096610,1770798368123,-21021.0,0.00044377,45]
[405096611,1770798368215,-30000.0,0.00044377,120]
[405096612,1770798368312,-510.7730882,0.00044377,30]
[405096613,1770798368407,-560.07,0.00044377,30]
[405096614,1770798368498,-209.87,0.00044377,30]
[405096615,1770798368586,-762.42,0.00044377,30]
[405096616,1770798368670,-193.82800712,0.00044377,120]
[405096617,1770798369355,12361.10530724,0.00044377,30]
[405096618,1770798371457,1242.48577944,8e-05,2]
[405096619,1770798371699,614.34718101,0.00044377,120]
[405096652,1770798498727,392.37252682,7.888e-05,2]
[405096660,1770798518614,5000.01,0.0001,2]
[405096661,1770798518637,2859.11758327,0.0001,2]
[405096687,1770798631650,-644.54666321,0.000123,2]
[405096688,1770798631887,-552.39299999,0.000123,2]
[405096689,1770798631899,-582.48380388,0.000123,2]
[405096690,1770798631911,-1991.95696278,0.00013611,2]
[405096691,1770798631922,-3163.83,0.00014134,2]
[405096692,1770798631932,-2204.49045849,0.00014923,2]
[405096693,1770798631943,-250.0,0.00015,2]
[405096694,1770798631953,-190.99,0.00015691,2]
[405096695,1770798631964,-133598.32432,0.000162,5]
[405096696,1770798631974,-2417.02395419,0.00016234,2]
[405096697,1770798631985,-250.0,0.00016252,2]
[405096698,1770798631995,-300.0,0.0001649,2]
[405096699,1770798632006,-247.71,0.00016627,2]
[405096700,1770798632019,-500.0,0.00016712,2]
[405096701,1770798632028,-1844.16,0.00016799,2]
[405096702,1770798632039,-411.1,0.000169,2]
[405096703,1770798632048,-3091.62,0.00016989,2]
[405096704,1770798632059,-150.0,0.00017146,2]
[405096705,1770798632069,-209.65266795,0.00017273,2]
[405096706,1770798632079,-826.90158249,0.00017273,2]
[405096707,1770798632090,-5607.45618123,0.00017273,2]
[405096708,1770798632100,-180.2683788,0.00017273,2]
[405096709,1770798632110,-717.23817082,0.00017273,2]
[405096710,1770798632121,-162.01657734,0.00017273,2]
[405096711,1770798632131,-3599.96776265,0.00017273,2]